bitfinex/quotes_BTCUSD_20251217
["timestamp","ask_amount","ask_price","bid_price","bid_amount"]
[1765999496792,0.0907,85995.0,85982.0,0.64219]
[1765999496968,0.0907,85995.0,85983.0,0.5115]
[1765999497389,0.0907,86004.0,85985.0,0.5115]
[1765999497613,0.00161287,86005.0,85991.0,0.5115]
[1765999497993,0.00161287,86005.0,85993.0,0.5115]
[1765999498349,0.00161287,86005.0,85994.0,0.54870343]
[1765999498538,0.00123291,86005.0,85994.0,0.54908339]
[1765999498753,0.01085966,86012.0,85995.0,0.64219]
[1765999498957,0.72161966,86011.0,85995.0,0.00160996]
[1765999499164,0.71076,86011.0,85995.0,0.00160996]
[1765999499374,0.71076,86011.0,85995.0,0.05461996]
[1765999499964,0.71076,86011.0,85995.0,0.00160996]
[1765999500166,0.02920789,86017.0,85997.0,0.5115]
[1765999500373,0.0907,86021.0,85997.0,0.51310996]
[1765999500580,0.001,86011.0,85997.0,0.51310996]
[1765999501814,0.001,86011.0,85997.0,0.00160996]
[1765999502017,0.71076,86007.0,85997.0,0.00160996]
[1765999502693,0.71076,86007.0,85995.0,0.5]
[1765999503522,0.0907,86009.0,85996.0,0.05]
[1765999503759,0.0186,86015.0,85996.0,0.5615]
[1765999503960,0.01086258,86014.0,85997.0,0.5115]
[1765999504172,0.80146,86018.0,85998.0,0.5115]
[1765999504380,0.0108626,86017.0,86000.0,0.5115]
[1765999504581,0.0907,86016.0,86000.0,0.5115]
[1765999505480,0.0907,86014.0,85999.0,0.0186]
[1765999505687,0.71076,86008.0,85995.0,0.5]
[1765999505982,0.71237287,86008.0,85995.0,0.5]
[1765999506185,0.71237287,86008.0,85996.0,0.05]
[1765999507372,0.71237287,86008.0,85995.0,0.5]
[1765999507528,0.29933,86003.0,85984.0,0.01849794]
[1765999507748,0.00261287,86008.0,85962.0,0.7459]
[1765999507749,0.72018149,85994.0,85962.0,0.7459]
[1765999507952,0.0907,85987.0,85962.0,0.7459]
[1765999508155,0.80146,85987.0,85962.0,0.7459]
[1765999508802,0.0186,85991.0,85961.0,0.0186]
[1765999508803,0.91939,85990.0,85961.0,0.0186]
[1765999509014,0.29933,85985.0,85961.0,0.0186]
[1765999509226,0.0907,85982.0,85961.0,0.0186]
[1765999509394,0.74997,85981.0,85953.0,0.7459]
[1765999509596,0.74997,85981.0,85960.0,0.0186]
[1765999510332,0.74997,85981.0,85971.0,0.00125696]
[1765999510564,0.84067,85983.0,85971.0,0.00025696]
[1765999510767,0.0907,85981.0,85971.0,0.00025696]
[1765999510902,0.68968,85980.0,85971.0,0.00025696]
[1765999511110,0.0907,85981.0,85971.0,0.52271696]
[1765999511327,0.0907,85981.0,85971.0,0.00025696]
[1765999511724,0.0907,85984.0,85971.0,0.00025696]
[1765999511950,0.78038,85984.0,85971.0,0.00125696]
[1765999512295,0.78038,85984.0,85971.0,0.00025696]
[1765999512521,0.78038,85984.0,85971.0,0.00125696]
[1765999512721,0.0907,85981.0,85971.0,0.00125696]
[1765999512930,0.68968,85980.0,85964.0,0.0183]
[1765999513079,0.66578,85980.0,85964.0,0.0183]
[1765999513284,0.66578,85980.0,85964.0,0.0182]
[1765999513469,0.66578,85980.0,85959.0,0.70817]
[1765999513669,0.66578,85980.0,85959.0,0.72677]
[1765999513902,0.66578,85980.0,85959.0,0.72667]
[1765999514252,0.78038,85979.0,85959.0,0.72667]
[1765999514673,0.78038,85979.0,85959.0,0.0186]
[1765999515145,0.20863,85969.0,85927.0,0.0004]
[1765999515353,0.78038,85964.0,85945.0,0.02326758]
[1765999515567,0.78038,85964.0,85944.0,0.02326758]
[1765999515941,0.78038,85964.0,85944.0,0.54572758]
[1765999516502,0.78138,85964.0,85944.0,0.54572758]
[1765999516712,0.78138,85964.0,85932.0,0.52246]
[1765999516713,0.68968,85959.0,85932.0,0.52246]
[1765999517080,0.68968,85957.0,85938.0,0.54572758]
[1765999517228,0.68968,85957.0,85940.0,0.52246]
[1765999517815,0.68968,85957.0,85939.0,0.52246]
[1765999518257,0.68968,85957.0,85940.0,0.01396323]
[1765999518453,0.68968,85957.0,85939.0,0.52246]
[1765999518723,0.68968,85957.0,85940.0,0.05457276]
[1765999519360,0.68968,85957.0,85941.0,0.52246]
[1765999519760,0.0186,85962.0,85943.0,0.52246]
[1765999520393,0.02021287,85962.0,85943.0,0.52246]
[1765999520596,0.00161287,85962.0,85943.0,0.52246]
[1765999520815,0.0186,85961.0,85943.0,0.52246]
[1765999520961,0.02021287,85961.0,85943.0,0.52246]
[1765999521179,0.02021287,85961.0,85938.0,0.02326758]
[1765999521402,0.68968,85959.0,85938.0,0.02326758]
[1765999521864,0.69129287,85959.0,85938.0,0.73143758]
[1765999522109,0.69129287,85959.0,85939.0,0.07314376]
[1765999522872,0.0186,85968.0,85945.0,0.70817]
[1765999523066,0.02021287,85970.0,85948.0,0.70817]
[1765999523361,0.02021287,85970.0,85952.0,0.52246]
[1765999523678,0.02021287,85970.0,85953.0,0.52246]
[1765999523812,0.00161287,85970.0,85955.0,0.52246]
[1765999523996,0.0907,85968.0,85949.0,0.01706967]
[1765999524194,0.0907,85965.0,85941.0,0.52246]
[1765999524453,0.01085785,85967.0,85941.0,0.52246]
[1765999524454,0.78038,85966.0,85941.0,0.52246]
[1765999524761,0.78038,85966.0,85946.0,0.70817]
[1765999524965,0.0186,85965.0,85951.0,0.52246]
[1765999525145,0.1093,85966.0,85951.0,0.52246]
[1765999525345,0.78038,85959.0,85939.0,0.54106]
[1765999525522,0.78038,85959.0,85941.0,0.02326758]
[1765999525867,0.78038,85959.0,85939.0,0.54106]
[1765999525868,0.0907,85957.0,85939.0,0.54106]
[1765999526011,0.72018149,85950.0,85927.0,0.0004]
[1765999526219,0.0186,85956.0,85927.0,0.0004]
[1765999526220,0.0907,85939.0,85927.0,0.0004]
[1765999526456,0.0907,85939.0,85914.0,0.52246]
[1765999526457,0.20928,85936.0,85901.0,0.24376614]
[1765999526688,0.20928,85936.0,85880.0,0.72018149]
[1765999526689,0.0907,85935.0,85906.0,0.70817]
[1765999526990,0.0186,85934.0,85903.0,0.01164103]
[1765999527193,0.1093,85934.0,85905.0,1.23063]
[1765999527392,0.1093,85934.0,85912.0,0.52222772]
[1765999527572,0.1093,85934.0,85913.0,0.06467264]
[1765999528009,0.79898,85934.0,85913.0,0.06467264]
[1765999528229,0.0907,85931.0,85913.0,0.06467264]
[1765999528629,0.0907,85931.0,85907.0,0.70817]
[1765999528830,0.0907,85931.0,85912.0,0.02326758]
[1765999529071,0.78038,85931.0,85912.0,0.02326758]
[1765999529592,0.0907,85931.0,85913.0,0.52246]
[1765999529796,0.0186,85930.0,85917.0,0.52246]
[1765999530017,0.0907,85942.0,85919.0,0.52246]
[1765999530218,0.72189827,85930.0,85908.0,0.52246]
[1765999530552,0.78038,85929.0,85911.0,0.02326758]
[1765999530974,0.0907,85929.0,85915.0,0.52246]
[1765999531387,0.03092929,85960.0,85934.0,0.52246]
[1765999531595,0.68968,85958.0,85934.0,0.52246]
[1765999531778,0.0907,85957.0,85934.0,0.52246]
[1765999531981,0.0907,85955.0,85912.0,0.05001839]
[1765999532188,0.20951,85938.0,85907.0,0.52246]
[1765999532336,0.20951,85938.0,85911.0,0.52246]
[1765999532337,0.79898,85937.0,85911.0,0.52246]
[1765999532523,0.0186,85936.0,85913.0,0.05001839]
[1765999532722,0.09231287,85937.0,85914.0,0.05001839]
[1765999532936,0.09231287,85937.0,85918.0,0.70817]
[1765999533136,0.09231287,85937.0,85920.0,0.52246]
[1765999533585,0.00161287,85937.0,85920.0,0.52246]
[1765999533792,0.00161287,85937.0,85925.0,0.00025716]
[1765999535227,0.00161287,85937.0,85925.0,0.52271716]
[1765999536293,0.00361287,85937.0,85925.0,0.52271716]
[1765999536519,0.00361287,85937.0,85925.0,0.00025716]
[1765999536671,0.00161287,85937.0,85925.0,0.00025716]
[1765999536874,0.00261287,85937.0,85925.0,0.00025716]
[1765999539049,0.00261287,85937.0,85926.0,0.52246]
[1765999539267,0.68968,85936.0,85925.0,0.00025716]
[1765999539447,0.78038,85933.0,85925.0,0.00025716]
[1765999540405,0.78038,85933.0,85910.0,1.23063]
[1765999540613,0.78038,85933.0,85913.0,0.49046]
[1765999542913,0.78138,85933.0,85913.0,0.49046]
[1765999543123,0.78038,85933.0,85913.0,0.49046]
[1765999543522,0.70018,85928.0,85904.0,0.02326758]
[1765999543775,0.80175897,85927.0,85904.0,0.02326758]
[1765999543911,0.01087906,85926.0,85904.0,0.51372758]
[1765999544116,0.03498385,85938.0,85922.0,0.49046]
[1765999544307,0.0186,85936.0,85922.0,0.49046]
[1765999544533,0.001,85933.0,85922.0,0.49046]
[1765999544902,0.70018,85938.0,85922.0,0.49046]
[1765999544903,0.71878,85938.0,85922.0,0.49046]
[1765999545075,1.0584529,85950.0,85924.0,1.22963]
[1765999545076,0.03685473,85947.0,85924.0,1.22963]
[1765999545229,0.03685473,85947.0,85926.0,0.49046]
[1765999545230,0.0186,85943.0,85926.0,0.49046]
[1765999545655,0.001,85933.0,85926.0,0.49046]
[1765999546160,0.0186,85943.0,85928.0,0.49046]
[1765999546319,0.01825473,85947.0,85928.0,0.49046]
[1765999546320,0.001,85937.0,85928.0,0.49207]
[1765999547414,0.001,85937.0,85928.0,0.00161]
[1765999547794,0.79088,85944.0,85928.0,0.00161]
[1765999548378,0.001,85937.0,85928.0,0.00161]
[1765999548740,0.79088,85944.0,85928.0,0.00161]
[1765999548961,0.4064,85944.0,85928.0,0.00161]
[1765999549191,0.0907,85940.0,85928.0,0.00161]
[1765999549414,0.0907,85938.0,85928.0,0.00161]
[1765999549599,0.16414029,85938.0,85916.0,0.73917]
[1765999549796,0.0907,85938.0,85907.0,0.75777]
[1765999549999,0.70018,85935.0,85907.0,1.24984]
[1765999550332,0.0907,85938.0,85908.0,0.49046]
[1765999550333,0.70018,85931.0,85908.0,0.49046]
[1765999550538,0.70018,85931.0,85908.0,0.49207]
[1765999551532,0.70018,85931.0,85908.0,0.00161]
[1765999551734,0.70018,85926.0,85908.0,0.00161]
[1765999554196,0.70018,85939.0,85917.0,0.49046]
[1765999554324,0.70018,85939.0,85918.0,0.49046]
[1765999554527,0.0186,85937.0,85918.0,0.49207]
[1765999555687,0.0907,85938.0,85918.0,0.49207]
[1765999555927,0.2474,85965.0,85915.0,0.01163941]
[1765999555928,0.03107461,85956.0,85939.0,0.01163616]
[1765999556155,0.70018,86008.0,85960.0,1.0584529]
[1765999556370,0.0349657,85989.0,85971.0,0.49046]
[1765999556584,0.0109089,85988.0,85971.0,0.00161]
[1765999556773,0.01088586,85987.0,85972.0,0.01039424]
[1765999557042,0.01088586,85986.0,85972.0,0.01200424]
[1765999557240,0.01088586,85986.0,85972.0,0.49207]
[1765999557444,0.0186,85993.0,85973.0,0.73917]
[1765999557652,0.010872,85992.0,85973.0,0.74078]
[1765999557982,0.002,85987.0,85973.0,0.74078]
[1765999558166,0.010872,85992.0,85973.0,0.74078]
[1765999558980,0.010872,85992.0,85973.0,0.72217999]
[1765999559197,0.010872,85992.0,85973.0,0.00161]
[1765999559394,0.0907,85990.0,85957.0,0.50160372]
[1765999559614,0.0907,85987.0,85964.0,0.02326758]
[1765999559820,0.70018,85986.0,85964.0,0.02326758]
[1765999560020,0.71878,85985.0,85965.0,0.02675657]
[1765999560230,0.71878,85985.0,85952.0,0.0284416]
[1765999560231,0.70018,85979.0,85952.0,0.0284416]
[1765999560441,0.0907,85978.0,85954.0,0.02326758]
[1765999560646,0.0907,85976.0,85954.0,0.02326758]
[1765999560851,0.0907,85976.0,85949.0,0.2443293]
[1765999560852,0.0907,85981.0,85955.0,0.03193077]
[1765999561250,0.0907,85978.0,85950.0,0.01163467]
[1765999561511,0.0907,85978.0,85949.0,0.0116348]
[1765999561512,0.0186,85977.0,85958.0,0.49046]
[1765999561704,0.0186,85984.0,85968.0,0.49046]
[1765999561906,0.0186,85984.0,85964.0,0.02326758]
[1765999562060,0.0907,85983.0,85964.0,0.02326758]
[1765999562262,0.0907,85983.0,85965.0,0.49046]
[1765999562869,0.09231287,85983.0,85965.0,0.49046]
[1765999563362,0.09231287,85983.0,85965.0,1.22963]
[1765999563567,1.0584529,86000.0,85964.0,0.02326758]
[1765999563568,0.70018,86004.0,85977.0,0.49046]
[1765999563766,0.03495935,86010.0,85977.0,0.73917]
[1765999563767,0.0186,86000.0,85977.0,0.73917]
[1765999563967,0.70018,85995.0,85969.0,0.05001839]
[1765999564174,0.70018,85995.0,85975.0,0.49046]
[1765999564384,0.70179287,85995.0,85975.0,0.49046]
[1765999565013,0.00161287,85995.0,85977.0,0.49046]
[1765999565211,0.00361287,85995.0,85977.0,0.49046]
[1765999565361,0.00361287,85995.0,85978.0,0.07671973]
[1765999565581,0.00161287,85995.0,85978.0,0.07671973]
[1765999566598,0.0186,85994.0,85978.0,0.07671973]
[1765999566800,0.00161287,85995.0,85978.0,0.07671973]
[1765999567169,0.0186,85994.0,85979.0,0.49046]
[1765999567376,0.00161287,85995.0,85981.0,0.49046]
[1765999567552,0.52221,86010.0,85987.0,0.73917]
[1765999567834,0.52221,86017.0,85998.0,0.01162817]
[1765999568047,0.70018,86024.0,85999.0,0.07671973]
[1765999568221,0.70018,86024.0,85992.0,1.24125898]
[1765999568222,0.0186,86014.0,85992.0,1.22963]
[1765999568449,0.0907,86014.0,85994.0,0.49046]
[1765999568568,0.0186,86013.0,85997.0,0.49046]
[1765999569219,0.0186,86013.0,85996.0,0.73917]
[1765999569551,1.18337,86012.0,85990.0,0.49046]
[1765999569701,1.18337,86012.0,85957.0,0.08886848]
[1765999569702,0.50706,86005.0,85977.0,0.0907]
[1765999569897,0.67631,86002.0,85981.0,0.02326758]
[1765999570107,0.69491,86001.0,85981.0,0.02326758]
[1765999570386,0.69491,86001.0,85982.0,0.06020176]
[1765999570599,0.01824071,86011.0,85989.0,0.01162939]
[1765999570811,0.0186,86010.0,85991.0,0.52094]
[1765999571013,0.00161287,86010.0,85991.0,0.52094]
[1765999571191,1.25429,86006.0,85981.0,0.02326758]
[1765999571343,1.25590287,86006.0,85983.0,0.52094]
[1765999571545,1.25590287,86006.0,85984.0,0.52094]
[1765999571755,0.74726,86005.0,85984.0,0.52094]
[1765999572004,0.74887287,86005.0,85984.0,0.52094]
[1765999572208,0.74887287,86005.0,85984.0,0.2442314]
[1765999572408,0.74887287,86005.0,85986.0,0.52094]
[1765999572639,1.25429,86004.0,85984.0,0.68375]
[1765999572834,1.25590287,86004.0,85984.0,0.68375]
[1765999573236,1.25590287,86004.0,85985.0,0.0757036]
[1765999573398,0.74726,86003.0,85985.0,0.0757036]
[1765999573599,0.74726,86000.0,85985.0,0.0757036]
[1765999573799,0.0186,85999.0,85978.0,0.02326758]
[1765999574005,0.0186,85999.0,85975.0,0.68375]
[1765999574006,0.74726,85995.0,85975.0,0.68375]
[1765999574251,0.50864287,85995.0,85975.0,0.68375]
[1765999574509,0.00161287,85995.0,85977.0,0.52094]
[1765999575282,0.00161287,85995.0,85978.0,0.001]
[1765999575417,0.00161287,85995.0,85978.0,0.52194]
[1765999575622,0.0186,85994.0,85978.0,0.52194]
[1765999576582,0.0186,85994.0,85978.0,0.52094]
[1765999576786,0.0186,85994.0,85979.0,0.68375]
[1765999576990,0.0186,85994.0,85980.0,0.52094]
[1765999577197,0.00261287,85995.0,85980.0,0.52094]
[1765999577198,0.0186,85993.0,85980.0,0.52094]
[1765999578179,0.0186,85993.0,85973.0,0.52120422]
[1765999578361,0.0186,85993.0,85955.0,0.52094]
[1765999578362,0.50703,85989.0,85955.0,0.52094]
[1765999578563,0.74726,85985.0,85955.0,0.52010422]
[1765999578766,0.74726,85985.0,85951.0,0.68375]
[1765999578767,0.59773,85982.0,85956.0,0.77396343]
[1765999578935,0.83796,85980.0,85956.0,0.77396343]
[1765999579145,0.0907,85980.0,85958.0,0.68375]
[1765999579310,0.0907,85980.0,85960.0,0.24429966]
[1765999579534,0.0907,85980.0,85959.0,0.68375]
[1765999579535,0.0186,85979.0,85962.0,0.02326758]
[1765999580462,0.0186,85979.0,85959.0,0.68375]
[1765999580463,1.25429,85978.0,85959.0,0.68375]
[1765999581170,0.0186,85979.0,85947.0,0.52094]
[1765999581171,0.50703,85972.0,85947.0,0.52094]
[1765999581371,0.74726,85971.0,85950.0,0.02226758]
[1765999581593,0.74726,85971.0,85949.0,0.52094]
[1765999581794,0.50703,85968.0,85948.0,0.68375]
[1765999582071,0.74726,85963.0,85941.0,0.52094]
[1765999582263,1.27289,85962.0,85941.0,0.52094]
[1765999582427,0.74726,85961.0,85941.0,0.52094]
[1765999583027,0.50703,85960.0,85938.0,0.68375]
[1765999583409,1.25429,85949.0,85925.0,0.68375]
[1765999583633,0.74726,85945.0,85925.0,0.68375]
[1765999583834,0.74726,85943.0,85925.0,0.68375]
[1765999584045,0.0186,85948.0,85917.0,0.68375]
[1765999584046,0.50703,85941.0,85917.0,0.68375]
[1765999584266,0.76586,85948.0,85919.0,0.68375]
[1765999584484,0.74726,85946.0,85919.0,0.68375]
[1765999584662,0.50703,85943.0,85919.0,0.68375]
[1765999584888,0.74726,85942.0,85919.0,0.68375]
[1765999585040,0.83796,85950.0,85926.0,0.68375]
[1765999585250,0.50703,85948.0,85927.0,0.52094]
[1765999585452,0.74726,85947.0,85927.0,0.52094]
[1765999585663,0.74887287,85947.0,85927.0,0.52094]
[1765999586678,0.74987287,85947.0,85927.0,0.52094]
[1765999586846,0.0186,85946.0,85928.0,0.07070176]
[1765999587266,0.76586,85946.0,85928.0,0.06970141]
[1765999587682,0.50703,85944.0,85928.0,0.06970141]
[1765999587886,0.74726,85943.0,85928.0,0.06970141]
[1765999588084,0.0186,85946.0,85925.0,0.68375]
[1765999588298,0.0186,85946.0,85926.0,1.20469]
[1765999588867,1.25429,85945.0,85922.0,0.52094]
[1765999589078,0.0186,85944.0,85932.0,0.0116371]
[1765999589247,0.0186,85943.0,85941.0,0.01163588]
[1765999589447,0.0186,85943.0,85942.0,1.20469]
[1765999589584,0.74726,85965.0,85942.0,1.29390308]
[1765999589785,0.0186,85964.0,85946.0,0.52094]
[1765999590013,0.74726,85970.0,85946.0,0.52094]
[1765999590211,0.0186,85969.0,85947.0,0.52094]
[1765999590415,0.74726,85967.0,85945.0,0.68375]
[1765999590620,0.74726,85967.0,85946.0,0.52094]
[1765999590848,0.11929048,85980.0,85948.0,0.68375]
[1765999591046,0.0907,85975.0,85952.0,1.20469]
[1765999591280,0.74726,85977.0,85955.0,0.68375]
[1765999591457,0.0186,85974.0,85959.0,0.52094]
[1765999591635,0.0186,85974.0,85953.0,0.01163426]
[1765999591636,0.0186,85973.0,85961.0,0.52094]
[1765999592224,0.50703,85984.0,85962.0,0.68375]
[1765999592434,0.76586,85983.0,85962.0,1.20469]
[1765999592671,0.76747287,85983.0,85962.0,1.20469]
[1765999592867,0.74887287,85983.0,85962.0,1.20469]
[1765999593077,0.74887287,85983.0,85964.0,0.02326758]
[1765999593267,0.0186,85982.0,85968.0,0.52094]
[1765999593451,0.02021287,85982.0,85968.0,0.52094]
[1765999594675,0.02121287,85982.0,85968.0,0.52094]
[1765999595315,0.02021287,85982.0,85968.0,0.52094]
[1765999595519,0.02021287,85982.0,85967.0,0.68375]
[1765999595720,0.50703,85980.0,85959.0,0.68375]
[1765999595918,0.74726,85976.0,85954.0,0.52094]
[1765999596173,0.74887287,85976.0,85955.0,0.08921308]
[1765999597237,0.74887287,85976.0,85954.0,0.52094]
[1765999597449,0.0186,85975.0,85960.0,0.02326758]
[1765999597644,0.76586,85975.0,85953.0,0.05001839]
[1765999597985,0.76586,85975.0,85953.0,0.57095839]
[1765999598201,0.76586,85975.0,85947.0,0.02326758]
[1765999598202,0.74726,85971.0,85947.0,0.02326758]
[1765999598400,0.74726,85967.0,85947.0,0.08792193]
[1765999599101,0.74726,85967.0,85948.0,1.20469]
[1765999599710,0.0186,85966.0,85950.0,0.01163467]
[1765999599909,0.09231287,85976.0,85940.0,0.72119811]
[1765999599910,0.0186,85965.0,85949.0,0.02326758]
[1765999600110,0.0186,85964.0,85949.0,0.02326758]
[1765999600412,0.0186,85963.0,85952.0,0.52094]
[1765999600569,0.83957287,85976.0,85968.0,0.5171]
[1765999600570,0.00161287,85976.0,85968.0,0.5171]
[1765999600907,0.00161287,85976.0,85968.0,1.22985]
[1765999601113,0.0186,85975.0,85968.0,1.22985]
[1765999601277,0.0186,85975.0,85969.0,0.03685473]
[1765999602104,0.00161287,85976.0,85963.0,0.02326758]
[1765999602303,0.73182,86004.0,85972.0,0.71275]
[1765999602505,0.0186,85988.0,85974.0,0.5171]
[1765999602704,0.0186,85988.0,85976.0,0.5171]
[1765999603581,0.0186,85988.0,85974.0,0.00161]
[1765999603759,0.48148,85983.0,85963.0,0.02326758]
[1765999603966,0.73182,85982.0,85964.0,0.05589676]
[1765999604160,0.73182,85981.0,85964.0,0.05589676]
[1765999604564,0.73182,85979.0,85964.0,0.05589676]
[1765999604727,0.73182,85975.0,85963.0,0.00161]
[1765999604940,0.73182,85973.0,85963.0,0.00161]
[1765999605144,0.48148,85973.0,85963.0,0.00161]
[1765999605345,0.48148,85969.0,85950.0,0.1499]
[1765999605568,0.73182,85966.0,85950.0,0.15151]
[1765999606132,0.73182,85977.0,85952.0,0.5171]
[1765999606280,0.0186,85973.0,85958.0,0.5171]
[1765999606489,0.48148,85983.0,85962.0,0.5171]
[1765999606490,0.0186,85979.0,85962.0,0.5171]
[1765999606687,0.0186,85979.0,85962.0,0.51871]
[1765999607481,0.28039341,85983.0,85962.0,0.51871]
[1765999607678,0.74269271,85982.0,85962.0,0.51871]
[1765999607898,0.74269271,85981.0,85962.0,0.51871]
[1765999608095,0.01087271,85980.0,85962.0,0.51871]
[1765999609100,0.00180605,85986.0,85969.0,0.5171]
[1765999609316,0.00199998,86030.0,85967.0,0.02326758]
[1765999609317,0.01087391,85995.0,85985.0,0.00161]
[1765999609727,0.0907,86003.0,85986.0,1.22985]
[1765999610063,0.0907,86003.0,85987.0,0.5171]
[1765999610064,0.0108702,86002.0,85987.0,0.5171]
[1765999610210,0.0108702,86002.0,85987.0,0.51871]
[1765999610425,0.73182,86004.0,85987.0,0.51871]
[1765999610629,0.10156682,86003.0,85987.0,0.51871]
[1765999610828,0.0907,86003.0,85987.0,0.51871]
[1765999611441,0.0907,86003.0,85988.0,0.71275]
[1765999611650,0.0907,86001.0,85989.0,0.071436]
[1765999611845,0.0907,86001.0,85987.0,0.00161]
[1765999612298,1.48148,85994.0,85936.0,0.71265]
[1765999612495,1.47164712,86000.0,85946.0,0.00161]
[1765999612496,0.73182,85980.0,85946.0,0.00161]
[1765999612624,0.57218,85977.0,85946.0,0.00161]
[1765999612828,0.0907,85974.0,85946.0,0.00161]
[1765999613030,0.72109161,85970.0,85946.0,0.00161]
[1765999613238,0.72109161,85970.0,85948.0,0.02326758]
[1765999613444,0.0907,85974.0,85948.0,0.02326758]
[1765999613445,0.0907,85974.0,85948.0,0.02487758]
[1765999613644,0.01086904,85973.0,85948.0,0.02487758]
[1765999614265,0.01086904,85973.0,85950.0,0.71275]
[1765999614465,0.01086904,85973.0,85950.0,0.71436]
[1765999614664,0.01086904,85973.0,85950.0,1.23146]
[1765999614919,0.001,85974.0,85951.0,0.73135]
[1765999615141,0.001,85974.0,85956.0,0.71275]
[1765999615342,0.001,85974.0,85957.0,0.71275]
[1765999615542,0.001,85974.0,85957.0,0.71436]
[1765999616375,0.001,85973.0,85957.0,0.71436]
[1765999616529,0.01087579,85975.0,85957.0,0.71436]
[1765999616872,0.0186,85981.0,85963.0,0.71275]
[1765999616873,0.0907,85981.0,85963.0,0.71275]
[1765999617027,0.001,85974.0,85963.0,0.53731]
[1765999617240,0.01087991,85980.0,85963.0,1.25006]
[1765999617654,0.001,85973.0,85963.0,1.25006]
[1765999617854,0.01087991,85980.0,85963.0,0.00161]
[1765999617855,0.73197152,85980.0,85963.0,0.00161]
[1765999618036,1.2133,85978.0,85963.0,0.00161]
[1765999618239,0.001,85974.0,85963.0,0.00161]
[1765999619485,0.01087991,85979.0,85964.0,0.71275]
[1765999619683,0.01087991,85978.0,85964.0,0.71436]
[1765999619882,0.01087991,85977.0,85964.0,0.71436]
[1765999620103,0.01087991,85976.0,85964.0,0.71436]
[1765999620275,0.001,85974.0,85964.0,0.71436]
[1765999620479,0.01187991,85974.0,85964.0,0.71436]
[1765999620683,0.0907,85996.0,85969.0,0.71275]
[1765999620879,0.001,85978.0,85969.0,0.73296]
[1765999621243,1.2133,85985.0,85969.0,0.02021]
[1765999621455,0.01089573,85984.0,85969.0,0.02021]
[1765999621596,0.49237573,85984.0,85969.0,0.00161]
[1765999621958,0.73182,85976.0,85962.0,0.0186]
[1765999622162,0.73182,85976.0,85962.0,0.02021]
[1765999622960,0.72109161,85980.0,85962.0,0.02021]
[1765999623159,0.01089669,85979.0,85962.0,0.02021]
[1765999623458,0.48148,85970.0,85962.0,0.02021]
[1765999623636,0.0907,85967.0,85949.0,0.0186]
[1765999623841,0.49237752,85966.0,85949.0,0.02021]
[1765999624070,0.0907,85967.0,85950.0,1.22985]
[1765999624276,0.01089796,85966.0,85951.0,0.71275]
[1765999624483,0.48148,85973.0,85951.0,0.71436]
[1765999624484,0.0907,85972.0,85951.0,0.71436]
[1765999624751,0.0108974,85971.0,85952.0,0.02326758]
[1765999624964,0.0108974,85971.0,85953.0,0.71275]
[1765999625207,0.72109161,85970.0,85952.0,0.00161]
[1765999625408,0.48148,85968.0,85952.0,0.00161]
[1765999625640,0.0108974,85967.0,85952.0,0.00161]
[1765999626601,1.2133,85966.0,85952.0,0.00161]
[1765999626778,0.0108974,85965.0,85952.0,0.00161]
[1765999626995,0.0108974,85965.0,85952.0,0.00261]
[1765999627727,0.0108974,85965.0,85952.0,0.00161]
[1765999628993,1.2133,85966.0,85952.0,0.00161]
[1765999629191,1.21307103,85966.0,85952.0,0.00161]
[1765999629431,0.0186,85979.0,85957.0,0.52053]
[1765999629432,0.0186,85977.0,85957.0,0.52053]
[1765999629633,0.01089369,85976.0,85963.0,0.52053]
[1765999629841,0.01089369,85975.0,85964.0,0.6793]
[1765999630058,0.01089369,85974.0,85963.0,0.00161]
[1765999630230,0.01089369,85973.0,85963.0,0.00161]
[1765999630431,0.47612,85978.0,85963.0,0.00161]
[1765999630637,0.47612,85976.0,85963.0,0.00161]
[1765999630778,0.48475,85974.0,85959.0,0.0185]
[1765999630980,0.001,85976.0,85959.0,0.01910999]
[1765999630981,0.01089391,85973.0,85959.0,0.01910999]
[1765999631187,0.0907,85978.0,85962.0,1.20597]
[1765999631393,0.01089347,85977.0,85964.0,0.71633]
[1765999631588,0.01089347,85977.0,85962.0,0.00060999]
[1765999632341,0.48475,85975.0,85962.0,0.00060999]
[1765999632563,0.01089347,85974.0,85962.0,0.00060999]
[1765999633439,0.01089347,85973.0,85962.0,0.00060999]
[1765999633657,0.001,85974.0,85962.0,0.00060999]
[1765999634052,0.01089557,85975.0,85962.0,0.00060999]
[1765999634273,0.001,85974.0,85962.0,0.00060999]
[1765999634615,0.00200287,85974.0,85962.0,0.00060999]
[1765999635528,0.00100287,85974.0,85962.0,0.00060999]
[1765999635738,0.01089557,85978.0,85962.0,0.00060999]
[1765999635941,0.001,85974.0,85963.0,0.48964]
[1765999636151,0.01089557,85978.0,85964.0,0.050875]
[1765999636354,0.48475,85977.0,85964.0,0.00161287]
[1765999636554,0.001,85974.0,85964.0,0.00161287]
[1765999636760,0.01089557,85976.0,85964.0,0.00161287]
[1765999637169,0.001,85974.0,85964.0,0.00161287]
[1765999637375,0.01089557,85976.0,85964.0,0.00161287]
[1765999638778,0.001,85974.0,85964.0,0.00161287]
[1765999639116,0.01089557,85976.0,85964.0,0.00161287]
[1765999639304,0.01089557,85976.0,85965.0,0.05097529]
[1765999639525,1.0,85974.0,85923.0,0.04174268]
[1765999639735,0.0907,85939.0,85917.0,0.0186]
[1765999639981,0.0907,85935.0,85918.0,0.0186]
[1765999640176,0.01089557,85934.0,85896.0,0.48964]
[1765999640420,0.01089557,85934.0,85890.0,0.81179161]
[1765999640421,0.72109161,85930.0,85898.0,0.48964]
[1765999640622,0.01089624,85929.0,85900.0,0.48964]
[1765999641055,0.72109161,85930.0,85907.0,0.51290758]
[1765999641253,0.72109161,85930.0,85908.0,0.50824]
[1765999641597,0.01089081,85929.0,85908.0,0.50824]
[1765999642539,0.72109161,85930.0,85909.0,0.0186]